fUSD/lending_fUSD_20250422
["ID","MTS","AMOUNT","RATE_DAILY","PERIOD"]
[358591730,1745295057930,-176.954828,0.00055,120]
[358591731,1745295057939,-176.954828,0.00055,120]
[358591732,1745295057950,-151.0,0.00055,120]
[358591733,1745295057960,-151.0,0.00055,120]
[358591734,1745295057969,-611.122299,0.00055,120]
[358591735,1745295057979,-611.122299,0.00055,120]
[358591736,1745295057989,-151.0,0.00055,120]
[358591737,1745295057999,-300.439079,0.00055,120]
[358591738,1745295058009,-200.0,0.00055,120]
[358591739,1745295058019,-151.0,0.00055,120]
[358591740,1745295058030,-514.6549,0.00055,30]
[358591741,1745295058041,-252.805805,0.00055,120]
[358591742,1745295058051,-252.805805,0.00055,120]
[358591743,1745295058061,-3005.98,0.00055068,120]
[358591744,1745295058071,-795.0,0.00055104,2]
[358591745,1745295058081,-200.0,0.000552,101]
[358591746,1745295058091,-1000.0,0.00055227,120]
[358591747,1745295058100,-646.6774063,0.00055304,2]
[358591748,1745295058111,-89923.15,0.00055342,7]
[358591749,1745295058120,-187.884564,0.00055342,120]
[358591750,1745295058129,-298.945392,0.00055342,120]
[358591751,1745295058139,-1123.355858,0.00055342,120]
[358591752,1745295058149,-151.397205,0.00055342,120]
[358591753,1745295058158,-500.0,0.00055342,120]
[358591754,1745295058168,-290.341285,0.00055342,120]
[358591755,1745295058178,-500.0,0.00055342,120]
[358591756,1745295058187,-151.0,0.00055342,120]
[358591757,1745295058197,-500.0,0.00055342,120]
[358591758,1745295058206,-500.0,0.00055342,120]
[358591759,1745295058216,-500.0,0.00055342,120]
[358591760,1745295058226,-526.69550988,0.00055342,120]
[358591761,1745295058235,-500.0,0.00055342,120]
[358591762,1745295058245,-542.79910736,0.00055342,120]
[358591763,1745295058255,-500.0,0.00055342,120]
[358591764,1745295058265,-500.0,0.00055342,120]
[358591765,1745295058275,-500.0,0.00055342,120]
[358591766,1745295058284,-500.0,0.00055342,60]
[358591767,1745295058293,-500.0,0.00055342,120]
[358591768,1745295058434,-600.0,0.00055342,120]
[358591769,1745295058458,-500.0,0.00055342,120]
[358591770,1745295058468,-500.0,0.00055342,120]
[358591771,1745295058477,-500.0,0.00055342,120]
[358591772,1745295058487,-528.0137348,0.00055342,7]
[358591773,1745295058496,-511.40012498,0.00055342,120]
[358591774,1745295058505,-500.0,0.00055342,120]
[358591775,1745295058513,-500.0,0.00055342,120]
[358591776,1745295058523,-500.0,0.00055342,120]
[358591777,1745295058532,-1000.0,0.00055342,120]
[358591778,1745295058541,-500.0,0.00055342,120]
[358591779,1745295058551,-500.0,0.00055342,120]
[358591780,1745295058560,-500.0,0.00055342,120]
[358591781,1745295058569,-500.0,0.00055342,120]
[358591782,1745295058579,-500.0,0.00055342,120]
[358591783,1745295058588,-500.0,0.00055342,120]
[358591784,1745295058597,-500.0,0.00055342,120]
[358591785,1745295058607,-500.0,0.00055342,120]
[358591786,1745295058616,-579.62926048,0.00055342,120]
[358591787,1745295058625,-500.0,0.00055342,120]
[358591788,1745295058634,-367.726189,0.00055342,120]
[358591789,1745295058643,-568.00394227,0.00055342,120]
[358591790,1745295058652,-500.0,0.00055342,120]
[358591791,1745295058662,-500.0,0.00055342,120]
[358591792,1745295058671,-500.0,0.00055342,120]
[358591793,1745295058680,-332.22682984,0.00055342,120]
[358591794,1745295058690,-500.0,0.00055342,120]
[358591795,1745295058699,-500.0,0.00055342,120]
[358591796,1745295058708,-500.0,0.00055342,120]
[358591797,1745295058717,-500.0,0.00055342,120]
[358591798,1745295058726,-500.0,0.00055342,120]
[358591799,1745295058735,-500.0,0.00055342,120]
[358591800,1745295058743,-500.0,0.00055342,120]
[358591801,1745295058752,-500.0,0.00055342,120]
[358591802,1745295058761,-500.0,0.00055342,120]
[358591803,1745295058770,-500.0,0.00055342,120]
[358591804,1745295058779,-500.0,0.00055342,120]
[358591805,1745295058788,-500.0,0.00055342,120]
[358591806,1745295058800,-574.32,0.00055342,120]
[358591807,1745295058809,-500.0,0.00055342,120]
[358591808,1745295058818,-500.0,0.00055342,120]
[358591809,1745295058827,-500.0,0.00055342,120]
[358591810,1745295058836,-500.0,0.00055342,120]
[358591811,1745295058845,-500.0,0.00055342,120]
[358591812,1745295058854,-151.0,0.00055342,120]
[358591813,1745295058863,-500.0,0.00055342,120]
[358591814,1745295058872,-673.62,0.00055342,120]
[358591815,1745295058881,-500.0,0.00055342,120]
[358591816,1745295058890,-519.97306136,0.00055342,120]
[358591817,1745295058899,-500.0,0.00055342,120]
[358591818,1745295058910,-500.0,0.00055342,120]
[358591819,1745295058920,-151.0,0.00055342,120]
[358591820,1745295058929,-500.0,0.00055342,120]
[358591821,1745295058938,-500.0,0.00055342,120]
[358591822,1745295058948,-500.0,0.00055342,120]
[358591823,1745295058960,-500.0,0.00055342,120]
[358591824,1745295058970,-500.0,0.00055342,30]
[358591825,1745295058979,-843.87,0.00055342,120]
[358591826,1745295058989,-500.0,0.00055342,120]
[358591827,1745295058998,-500.0,0.00055342,120]
[358591828,1745295059007,-500.0,0.00055342,120]
[358591829,1745295059016,-540.39827111,0.00055342,120]
[358591830,1745295059025,-500.0,0.00055342,120]
[358591831,1745295059034,-500.0,0.00055342,120]
[358591832,1745295059043,-567.49056603,0.00055342,120]
[358591833,1745295059053,-500.0,0.00055342,120]
[358591834,1745295059062,-528.66194959,0.00055342,120]
[358591835,1745295059072,-583.51453194,0.00055342,120]
[358591836,1745295059081,-272.48643184,0.00055342,120]
[358591837,1745295059090,-486.62901952,0.00055342,120]
[358591838,1745295059099,-500.0,0.00055342,120]
[358591839,1745295059109,-500.0,0.00055342,120]
[358591840,1745295059118,-500.0,0.00055342,120]
[358591841,1745295059127,-228.92545678,0.00055342,120]
[358591842,1745295059137,-500.0,0.00055342,120]
[358591843,1745295059147,-500.0,0.00055342,120]
[358591844,1745295059156,-500.0,0.00055342,120]
[358591845,1745295059165,-500.0,0.00055342,120]
[358591846,1745295059174,-500.0,0.00055342,120]
[358591847,1745295059183,-508.7705413,0.00055342,120]
[358591848,1745295059195,-500.0,0.00055342,120]
[358591849,1745295059208,-500.0,0.00055342,120]
[358591850,1745295059217,-1312.2,0.00055342,120]
[358591851,1745295059226,-500.0,0.00055342,120]
[358591852,1745295059235,-500.0,0.00055342,120]
[358591853,1745295059244,-500.0,0.00055342,120]
[358591854,1745295059254,-500.0,0.00055342,120]
[358591855,1745295059263,-500.0,0.00055342,120]
[358591856,1745295059272,-500.0,0.00055342,120]
[358591857,1745295059282,-500.0,0.00055342,120]
[358591858,1745295059290,-500.0,0.00055342,120]
[358591859,1745295059300,-662.48,0.00055342,120]
[358591860,1745295059309,-549.96566708,0.00055342,120]
[358591861,1745295059317,-500.0,0.00055342,120]
[358591862,1745295059327,-162.77689395,0.00055342,120]
[358591863,1745295059336,-500.0,0.00055342,120]
[358591864,1745295059345,-583.55,0.00055342,120]
[358591865,1745295059354,-539.25,0.00055342,120]
[358591866,1745295059363,-151.0,0.00055342,120]
[358591867,1745295059372,-500.0,0.00055342,120]
[358591868,1745295059381,-500.0,0.00055342,120]
[358591869,1745295059390,-500.0,0.00055342,120]
[358591870,1745295059399,-500.0,0.00055342,120]
[358591871,1745295059408,-500.0,0.00055342,120]
[358591872,1745295059417,-151.0,0.00055342,120]
[358591873,1745295059426,-500.0,0.00055342,120]
[358591874,1745295059435,-500.0,0.00055342,120]
[358591875,1745295059443,-500.0,0.00055342,120]
[358591876,1745295059452,-521.99985088,0.00055342,120]
[358591877,1745295059461,-500.0,0.00055342,120]
[358591878,1745295059470,-500.0,0.00055342,120]
[358591879,1745295059479,-500.0,0.00055342,120]
[358591880,1745295059488,-500.0,0.00055342,120]
[358591881,1745295059498,-500.0,0.00055342,120]
[358591882,1745295059506,-500.0,0.00055342,120]
[358591883,1745295059515,-500.0,0.00055342,120]
[358591884,1745295059524,-500.0,0.00055342,120]
[358591885,1745295059533,-500.0,0.00055342,120]
[358591886,1745295059541,-500.0,0.00055342,120]
[358591887,1745295059550,-500.0,0.00055342,120]
[358591888,1745295059559,-509.45,0.00055342,120]
[358591889,1745295059568,-500.0,0.00055342,120]
[358591890,1745295059578,-500.0,0.00055342,120]
[358591891,1745295059587,-500.0,0.00055342,120]
[358591892,1745295059596,-205.8409262,0.00055342,120]
[358591893,1745295059606,-3289.934607,0.00055342,120]
[358591894,1745295059615,-151.0,0.00055342,120]
[358591895,1745295059624,-3289.934607,0.00055342,120]
[358591896,1745295059633,-500.0,0.00055342,120]
[358591897,1745295059643,-515.19,0.00055342,120]
[358591898,1745295059654,-500.0,0.00055342,120]
[358591899,1745295059663,-500.0,0.00055342,120]
[358591900,1745295059672,-151.0,0.00055342,120]
[358591901,1745295059682,-500.0,0.00055342,120]
[358591902,1745295059691,-500.0,0.00055342,120]
[358591903,1745295059701,-500.0,0.00055342,120]
[358591904,1745295059710,-500.0,0.00055342,120]
[358591905,1745295059720,-500.0,0.00055342,120]
[358591906,1745295059730,-500.0,0.00055342,120]
[358591907,1745295059739,-500.0,0.00055342,120]
[358591908,1745295059748,-500.0,0.00055342,120]
[358591909,1745295059758,-500.0,0.00055342,120]
[358591910,1745295059767,-500.0,0.00055342,120]
[358591911,1745295059777,-500.0,0.00055342,120]
[358591912,1745295059786,-500.0,0.00055342,120]
[358591913,1745295059795,-500.0,0.00055342,120]
[358591914,1745295059804,-502.94343369,0.00055342,10]
[358591915,1745295059814,-500.0,0.00055342,120]
[358591916,1745295059823,-1064.2,0.00055342,120]
[358591917,1745295059832,-523.02,0.00055342,120]
[358591918,1745295059841,-500.0,0.00055342,2]
[358591919,1745295059850,-498.22251067,0.00055342,120]
[358591920,1745295059859,-500.0,0.00055342,120]
[358591921,1745295059868,-500.0,0.00055342,120]
[358591922,1745295059877,-500.0,0.00055342,120]
[358591923,1745295059886,-500.0,0.00055342,120]
[358591924,1745295059896,-500.0,0.00055342,120]
[358591925,1745295059909,-500.0,0.00055342,120]
[358591926,1745295059921,-500.0,0.00055342,120]
[358591927,1745295059932,-500.0,0.00055342,120]
[358591928,1745295059941,-500.0,0.00055342,120]
[358591929,1745295059954,-500.0,0.00055342,120]
[358591930,1745295059963,-20766.77,0.00055342,120]
[358591931,1745295059972,-500.0,0.00055342,120]
[358591932,1745295059981,-552.95230979,0.00055342,120]
[358591933,1745295059992,-500.0,0.00055342,120]
[358591934,1745295060002,-539.98586998,0.00055342,120]
[358591935,1745295060011,-500.0,0.00055342,120]
[358591936,1745295060020,-500.0,0.00055342,120]
[358591937,1745295060029,-500.0,0.00055342,120]
[358591938,1745295060039,-500.0,0.00055342,120]
[358591939,1745295060048,-1000.0,0.00055342,35]
[358591940,1745295060057,-500.0,0.00055342,120]
[358591941,1745295060067,-500.0,0.00055342,120]
[358591942,1745295060077,-500.0,0.00055342,120]
[358591943,1745295060086,-500.0,0.00055342,120]
[358591944,1745295060095,-500.0,0.00055342,120]
[358591945,1745295060105,-500.0,0.00055342,120]
[358591946,1745295060114,-1000.0,0.00055342,120]
[358591947,1745295060123,-500.0,0.00055342,120]
[358591948,1745295060133,-500.0,0.00055342,120]
[358591949,1745295060142,-500.0,0.00055342,120]
[358591950,1745295060153,-545.52,0.00055342,120]
[358591951,1745295060162,-2205.73,0.00055342,120]
[358591952,1745295060172,-500.0,0.00055342,120]
[358591953,1745295060181,-500.0,0.00055342,120]
[358591954,1745295060190,-500.0,0.00055342,120]
[358591955,1745295060199,-500.0,0.00055342,120]
[358591956,1745295060208,-500.0,0.00055342,120]
[358591957,1745295060217,-500.0,0.00055342,120]
[358591958,1745295060226,-500.0,0.00055342,120]
[358591959,1745295060235,-1121.58,0.00055342,120]
[358591960,1745295060245,-500.0,0.00055342,120]
[358591961,1745295060254,-500.0,0.00055342,120]
[358591962,1745295060263,-500.0,0.00055342,120]
[358591963,1745295060272,-500.0,0.00055342,120]
[358591964,1745295060282,-500.0,0.00055342,120]
[358591965,1745295060291,-500.0,0.00055342,118]
[358591966,1745295060299,-434.80125539,0.00055342,120]
[358591967,1745295060309,-224.993622,0.00055342,120]
[358591968,1745295060318,-705.34,0.00055342,120]
[358591969,1745295060327,-596.73227038,0.00055342,120]
[358591970,1745295060336,-500.0,0.00055342,120]
[358591971,1745295060345,-500.0,0.00055342,120]
[358591972,1745295060355,-224.993622,0.00055342,120]
[358591973,1745295060364,-684.17,0.00055342,120]
[358591974,1745295060373,-500.0,0.00055342,120]
[358591975,1745295060382,-500.0,0.00055342,120]
[358591976,1745295060391,-500.0,0.00055342,120]
[358591977,1745295060400,-508.22,0.00055342,120]
[358591978,1745295060410,-288.56016739,0.00055342,120]
[358591979,1745295060419,-500.0,0.00055342,120]
[358591980,1745295060429,-3000.0,0.00055342,120]
[358591981,1745295060438,-999.0,0.00055342,120]
[358591982,1745295060447,-500.0,0.00055342,120]
[358591983,1745295060456,-500.0,0.00055342,120]
[358591984,1745295060465,-500.0,0.00055342,120]
[358591985,1745295060474,-500.0,0.00055342,120]
[358591986,1745295060483,-353.33847321,0.00055342,120]
[358591987,1745295060491,-567.71342256,0.00055342,120]
[358591988,1745295060500,-500.0,0.00055342,120]
[358591989,1745295060510,-318.35326438,0.00055342,120]
[358591990,1745295060519,-500.0,0.00055342,120]
[358591991,1745295060527,-206.58214131,0.00055342,120]
[358591992,1745295060536,-515.13639643,0.00055342,120]
[358591993,1745295060545,-500.0,0.00055342,120]
[358591994,1745295060554,-500.0,0.00055342,120]
[358591995,1745295060563,-229.64911962,0.00055342,57]
[358591996,1745295060572,-594.75040723,0.00055342,120]
[358591997,1745295060581,-620.47514421,0.00055342,120]
[358591998,1745295060590,-631.22599022,0.00055342,120]
[358591999,1745295060599,-1348.73,0.00055342,120]
[358592000,1745295060608,-695.38,0.00055342,120]
[358592001,1745295060617,-500.0,0.00055342,30]
[358592002,1745295060626,-500.0,0.00055342,120]
[358592003,1745295060635,-500.0,0.00055342,120]
[358592004,1745295060644,-500.0,0.00055342,120]
[358592005,1745295060653,-500.0,0.00055342,120]
[358592006,1745295060663,-500.0,0.00055342,120]
[358592007,1745295060672,-608.59617806,0.00055342,120]
[358592008,1745295060681,-500.0,0.00055342,120]
[358592009,1745295060690,-500.0,0.00055342,120]
[358592010,1745295060699,-500.0,0.00055342,120]
[358592011,1745295060708,-500.0,0.00055342,120]
[358592012,1745295060718,-500.0,0.00055342,120]
[358592013,1745295060727,-500.0,0.00055342,120]
[358592014,1745295060736,-499.03828941,0.00055342,120]
[358592015,1745295060745,-500.0,0.00055342,120]
[358592016,1745295060755,-628.71,0.00055342,120]
[358592017,1745295060764,-500.0,0.00055342,120]
[358592018,1745295060773,-500.0,0.00055342,120]
[358592019,1745295060783,-500.0,0.00055342,120]
[358592020,1745295060792,-558.46,0.00055342,120]
[358592021,1745295060802,-500.0,0.00055342,120]
[358592022,1745295060811,-500.0,0.00055342,120]
[358592023,1745295060820,-548.78,0.00055342,120]
[358592024,1745295060829,-500.0,0.00055342,120]
[358592025,1745295060838,-500.0,0.00055342,120]
[358592026,1745295060847,-500.0,0.00055342,120]
[358592027,1745295060856,-1159.28,0.00055342,120]
[358592028,1745295060865,-500.0,0.00055342,120]
[358592029,1745295060874,-695.53,0.00055342,120]
[358592030,1745295060884,-500.0,0.00055342,120]
[358592031,1745295060893,-500.0,0.00055342,120]
[358592032,1745295060902,-500.0,0.00055342,120]
[358592033,1745295060916,-500.0,0.00055342,120]
[358592034,1745295060925,-500.0,0.00055342,120]
[358592035,1745295060935,-819.39,0.00055342,120]
[358592036,1745295060943,-500.0,0.00055342,120]
[358592037,1745295060953,-500.0,0.00055342,120]
[358592038,1745295060963,-500.0,0.00055342,120]
[358592039,1745295060972,-500.0,0.00055342,120]
[358592040,1745295060981,-623.28700134,0.00055342,120]
[358592041,1745295060993,-500.0,0.00055342,120]
[358592042,1745295061002,-500.0,0.00055342,120]
[358592043,1745295061010,-500.0,0.00055342,120]
[358592044,1745295061019,-500.0,0.00055342,120]
[358592045,1745295061028,-500.0,0.00055342,120]
[358592046,1745295061037,-320.37770974,0.00055342,120]
[358592047,1745295061046,-500.0,0.00055342,120]
[358592048,1745295061056,-513.8107973,0.00055342,120]
[358592049,1745295061065,-568.16,0.00055342,120]
[358592050,1745295061074,-500.0,0.00055342,120]
[358592051,1745295061085,-500.0,0.00055342,120]
[358592052,1745295061094,-534.15,0.00055342,120]
[358592053,1745295061105,-500.0,0.00055342,120]
[358592054,1745295061115,-479.52304916,0.00055342,120]
[358592055,1745295061124,-534.52,0.00055342,120]
[358592056,1745295061134,-1643.32,0.00055342,120]
[358592057,1745295061143,-2238.72,0.00055342,2]
[358592058,1745295061153,-501.13,0.00055342,120]
[358592059,1745295061163,-500.0,0.00055342,120]
[358592060,1745295061173,-500.0,0.00055342,120]
[358592061,1745295061182,-582.27541081,0.00055342,8]
[358592062,1745295061191,-632.59,0.00055342,120]
[358592063,1745295061201,-500.0,0.00055342,120]
[358592064,1745295061210,-500.0,0.00055342,120]
[358592065,1745295061219,-500.0,0.00055342,120]
[358592066,1745295061228,-500.0,0.00055342,120]
[358592067,1745295061238,-500.0,0.00055342,120]
[358592068,1745295061247,-548.78864173,0.00055342,120]
[358592069,1745295061256,-150.61447647,0.00055342,120]
[358592070,1745295061265,-336.57074206,0.00055342,120]
[358592071,1745295061274,-500.0,0.00055342,120]
[358592072,1745295061283,-1217.58,0.00055342,120]
[358592073,1745295061293,-500.0,0.00055342,120]
[358592074,1745295061302,-500.0,0.00055342,120]
[358592075,1745295061311,-734.8,0.00055342,120]
[358592076,1745295061320,-512.63,0.00055342,120]
[358592077,1745295061329,-500.0,0.00055342,120]
[358592078,1745295061338,-500.0,0.00055342,120]
[358592079,1745295061347,-645.16599033,0.00055342,120]
[358592080,1745295061358,-500.0,0.00055342,120]
[358592081,1745295061368,-500.0,0.00055342,120]
[358592082,1745295061377,-535.91,0.00055342,120]
[358592083,1745295061387,-569.45515135,0.00055342,120]
[358592084,1745295061395,-500.0,0.00055342,120]
[358592085,1745295061405,-500.0,0.00055342,120]
[358592086,1745295061415,-500.0,0.00055342,60]
[358592087,1745295061424,-500.0,0.00055342,120]
[358592088,1745295061433,-500.0,0.00055342,120]
[358592089,1745295061441,-500.0,0.00055342,120]
[358592090,1745295061451,-525.32,0.00055342,120]
[358592091,1745295061460,-427.43713248,0.00055342,120]
[358592092,1745295061469,-500.0,0.00055342,120]
[358592093,1745295061478,-219.93750168,0.00055342,120]
[358592094,1745295061487,-500.0,0.00055342,120]
[358592095,1745295061497,-500.0,0.00055342,120]
[358592096,1745295061507,-500.0,0.00055342,120]
[358592097,1745295061516,-500.0,0.00055342,120]
[358592098,1745295061526,-500.0,0.00055342,120]
[358592099,1745295061535,-500.0,0.00055342,120]
[358592100,1745295061544,-500.0,0.00055342,120]
[358592101,1745295061554,-500.0,0.00055342,120]
[358592102,1745295061563,-500.0,0.00055342,120]
[358592103,1745295061572,-500.0,0.00055342,120]
[358592104,1745295061582,-500.0,0.00055342,120]
[358592105,1745295061591,-166.21119759,0.00055342,120]
[358592106,1745295061600,-1224.65,0.00055342,120]
[358592107,1745295061609,-503.84176425,0.00055342,2]
[358592108,1745295061618,-500.0,0.00055342,120]
[358592109,1745295061628,-500.0,0.00055342,120]
[358592110,1745295061637,-529.31405438,0.00055342,120]
[358592111,1745295061647,-500.0,0.00055342,120]
[358592112,1745295061656,-740.11,0.00055342,120]
[358592113,1745295061665,-1297.76,0.00055342,120]
[358592114,1745295061674,-500.0,0.00055342,120]
[358592115,1745295061683,-500.0,0.00055342,120]
[358592116,1745295061693,-500.0,0.00055342,120]
[358592117,1745295061703,-500.0,0.00055342,120]
[358592118,1745295061715,-500.0,0.00055342,2]
[358592119,1745295061724,-500.0,0.00055342,120]
[358592120,1745295061734,-1000.0,0.00055434,120]
[358592121,1745295061743,-2110.0,0.0005549,30]
[358592122,1745295061752,-2000.0,0.0005555,40]
[358592123,1745295061762,-2700.0,0.00055555,120]
[358592124,1745295061771,-150.0,0.00055643,120]
[358592125,1745295061781,-1000.0,0.00055672,120]
[358592126,1745295061790,-200.0,0.000557,103]
[358592127,1745295061800,-152.0,0.00055709,13]
[358592128,1745295061809,-336.66,0.000558,2]
[358592129,1745295061818,-549.29789424,0.00055869,120]
[358592130,1745295061827,-89923.15,0.0005589,7]
[358592131,1745295061835,-187.884564,0.0005589,120]
[358592132,1745295061844,-298.945392,0.0005589,120]
[358592133,1745295061853,-1123.355858,0.0005589,120]
[358592134,1745295062006,-180.90111,0.0005589,120]
[358592135,1745295062016,-622.43478668,0.0005589,120]
[358592136,1745295062026,-186.38329,0.0005589,120]
[358592137,1745295062035,-623.8031,0.0005589,2]
[358592138,1745295062044,-623.8031,0.0005589,2]
[358592139,1745295062053,-500.0,0.0005589,120]
[358592140,1745295062063,-500.0,0.0005589,120]
[358592141,1745295062072,-500.0,0.0005589,120]
[358592142,1745295062082,-160.49496214,0.0005589,120]
[358592143,1745295062091,-500.0,0.0005589,120]
[358592144,1745295062101,-500.0,0.0005589,120]
[358592145,1745295062110,-520.59343303,0.0005589,120]
[358592146,1745295062119,-500.0,0.0005589,120]
[358592147,1745295062128,-500.0,0.0005589,60]
[358592148,1745295062138,-648.07717094,0.0005589,120]
[358592149,1745295062147,-600.0,0.0005589,120]
[358592150,1745295062156,-500.0,0.0005589,120]
[358592151,1745295062166,-500.0,0.0005589,120]
[358592152,1745295062175,-500.0,0.0005589,120]
[358592153,1745295062184,-500.0,0.0005589,120]
[358592154,1745295062193,-484.77059195,0.0005589,120]
[358592155,1745295062202,-500.0,0.0005589,120]
[358592156,1745295062211,-1000.0,0.0005589,120]
[358592157,1745295062221,-500.0,0.0005589,120]
[358592158,1745295062230,-613.91525191,0.0005589,120]
[358592159,1745295062240,-500.0,0.0005589,120]
[358592160,1745295062249,-500.0,0.0005589,120]
[358592161,1745295062258,-500.0,0.0005589,120]
[358592162,1745295062267,-500.0,0.0005589,120]
[358592163,1745295062277,-500.0,0.0005589,120]
[358592164,1745295062286,-500.0,0.0005589,120]
[358592165,1745295062295,-500.0,0.0005589,120]
[358592166,1745295062304,-367.726189,0.0005589,120]
[358592167,1745295062314,-500.0,0.0005589,120]
[358592168,1745295062323,-500.0,0.0005589,120]
[358592169,1745295062332,-500.0,0.0005589,120]
[358592170,1745295062341,-526.78288991,0.0005589,120]
[358592171,1745295062350,-500.0,0.0005589,120]
[358592172,1745295062359,-500.0,0.0005589,120]
[358592173,1745295062368,-500.0,0.0005589,120]
[358592174,1745295062377,-500.0,0.0005589,120]
[358592175,1745295062386,-500.0,0.0005589,120]
[358592176,1745295062395,-500.0,0.0005589,120]
[358592177,1745295062405,-500.0,0.0005589,120]
[358592178,1745295062415,-500.0,0.0005589,120]
[358592179,1745295062424,-356.4181834,0.0005589,120]
[358592180,1745295062433,-517.55826495,0.0005589,120]
[358592181,1745295062442,-500.0,0.0005589,120]
[358592182,1745295062451,-574.32,0.0005589,120]
[358592183,1745295062460,-500.0,0.0005589,120]
[358592184,1745295062469,-500.0,0.0005589,120]
[358592185,1745295062479,-500.0,0.0005589,120]
[358592186,1745295062488,-500.0,0.0005589,120]
[358592187,1745295062497,-500.0,0.0005589,120]
[358592188,1745295062506,-500.0,0.0005589,120]
[358592189,1745295062515,-673.62,0.0005589,120]
[358592190,1745295062524,-500.0,0.0005589,120]
[358592191,1745295062533,-500.0,0.0005589,120]
[358592192,1745295062543,-572.46865059,0.0005589,120]
[358592193,1745295062552,-500.0,0.0005589,120]
[358592194,1745295062561,-500.0,0.0005589,120]
[358592195,1745295062570,-595.57224845,0.0005589,120]
[358592196,1745295062579,-500.0,0.0005589,120]
[358592197,1745295062589,-500.0,0.0005589,30]
[358592198,1745295062598,-843.87,0.0005589,120]
[358592199,1745295062607,-500.0,0.0005589,120]
[358592200,1745295062616,-500.0,0.0005589,120]
[358592201,1745295062625,-500.0,0.0005589,120]
[358592202,1745295062635,-500.0,0.0005589,120]
[358592203,1745295062643,-500.0,0.0005589,120]
[358592204,1745295062652,-500.0,0.0005589,120]
[358592205,1745295062662,-500.0,0.0005589,120]
[358592206,1745295062671,-500.0,0.0005589,120]
[358592207,1745295062680,-500.0,0.0005589,120]
[358592208,1745295062689,-500.0,0.0005589,120]
[358592209,1745295062698,-500.0,0.0005589,120]
[358592210,1745295062707,-500.0,0.0005589,120]
[358592211,1745295062716,-500.0,0.0005589,120]
[358592212,1745295062725,-500.0,0.0005589,120]
[358592213,1745295062734,-500.0,0.0005589,120]
[358592214,1745295062743,-500.0,0.0005589,120]
[358592215,1745295062752,-1312.2,0.0005589,120]
[358592216,1745295062761,-500.0,0.0005589,120]
[358592217,1745295062771,-500.0,0.0005589,120]
[358592218,1745295062780,-500.0,0.0005589,120]
[358592219,1745295062789,-500.0,0.0005589,120]
[358592220,1745295062798,-500.0,0.0005589,120]
[358592221,1745295062807,-500.0,0.0005589,120]
[358592222,1745295062817,-500.0,0.0005589,120]
[358592223,1745295062826,-662.48,0.0005589,120]
[358592224,1745295062835,-500.0,0.0005589,120]
[358592225,1745295062844,-500.0,0.0005589,120]
[358592226,1745295062853,-583.55,0.0005589,120]
[358592227,1745295062862,-539.25,0.0005589,120]
[358592228,1745295062871,-500.0,0.0005589,120]
[358592229,1745295062880,-500.0,0.0005589,120]